fUST/lending_fUST_20241220
["ID","MTS","AMOUNT","RATE_DAILY","PERIOD"]
[346085737,1734695466495,-151.0,0.00024669,7]
[346085738,1734695466505,-151.0,0.00024669,7]
[346085739,1734695466515,-151.0,0.00024669,7]
[346085740,1734695466525,-151.0,0.00024669,7]
[346085741,1734695466535,-151.0,0.00024669,7]
[346085742,1734695466544,-151.0,0.00024669,7]
[346085743,1734695466554,-151.0,0.00024669,7]
[346085744,1734695466563,-151.0,0.00024669,7]
[346085745,1734695466572,-151.0,0.00024669,7]
[346085746,1734695466581,-151.0,0.00024669,7]
[346085747,1734695466590,-151.0,0.00024669,7]
[346085748,1734695466599,-151.0,0.00024669,7]
[346085749,1734695466609,-151.0,0.00024669,7]
[346085750,1734695466618,-164.877369,0.00024669,7]
[346085751,1734695466628,-151.0,0.00024669,7]
[346085752,1734695466637,-151.0,0.00024669,7]
[346085753,1734695466646,-151.0,0.00024669,7]
[346085754,1734695466656,-151.0,0.00024669,7]
[346085755,1734695466665,-261.368344,0.00024669,7]
[346085756,1734695466674,-151.0,0.00024669,7]
[346085757,1734695466683,-151.0,0.00024669,7]
[346085758,1734695466693,-155.436416,0.00024669,7]
[346085759,1734695466703,-151.0,0.00024669,7]
[346085760,1734695466713,-151.0,0.00024669,7]
[346085761,1734695466722,-151.0,0.00024669,7]
[346085762,1734695466737,-151.0,0.00024669,7]
[346085763,1734695466747,-151.0,0.00024669,7]
[346085764,1734695466757,-151.0,0.00024669,7]
[346085765,1734695466767,-209.557774,0.00024669,7]
[346085766,1734695466777,-151.0,0.00024669,7]
[346085767,1734695466788,-151.0,0.00024669,7]
[346085768,1734695466798,-151.0,0.00024669,7]
[346085769,1734695466807,-151.0,0.00024669,7]
[346085770,1734695466817,-151.0,0.00024669,7]
[346085771,1734695466826,-151.0,0.00024669,7]
[346085772,1734695466836,-151.0,0.00024669,7]
[346085773,1734695466846,-224.229476,0.00024669,7]
[346085774,1734695466856,-151.0,0.00024669,7]
[346085775,1734695466866,-151.0,0.00024669,7]
[346085776,1734695466877,-151.0,0.00024669,7]
[346085777,1734695466886,-159.83702,0.00024669,7]
[346085778,1734695466896,-151.0,0.00024669,7]
[346085779,1734695466906,-151.0,0.00024669,7]
[346085780,1734695466915,-151.0,0.00024669,7]
[346085781,1734695466926,-151.0,0.00024669,7]
[346085782,1734695466936,-191.849861,0.00024669,7]
[346085783,1734695466946,-283.2435,0.00024669,7]
[346085784,1734695466955,-283.2435,0.00024669,7]
[346085785,1734695466965,-283.2435,0.00024669,7]
[346085786,1734695466974,-283.2435,0.00024669,7]
[346085787,1734695466987,-283.2435,0.00024669,7]
[346085788,1734695466999,-283.2435,0.00024669,7]
[346085789,1734695467009,-283.2435,0.00024669,7]
[346085790,1734695467018,-283.2435,0.00024669,7]
[346085791,1734695467028,-283.2435,0.00024669,7]
[346085792,1734695467037,-283.2435,0.00024669,7]
[346085793,1734695467046,-283.2435,0.00024669,7]
[346085794,1734695467056,-283.2435,0.00024669,7]
[346085795,1734695467065,-283.2435,0.00024669,7]
[346085796,1734695467074,-283.2435,0.00024669,7]
[346085797,1734695467084,-283.2435,0.00024669,7]
[346085798,1734695467093,-283.2435,0.00024669,7]
[346085799,1734695467103,-283.2435,0.00024669,7]
[346085800,1734695467113,-283.2435,0.00024669,7]
[346085801,1734695467122,-283.2435,0.00024669,7]
[346085802,1734695467131,-283.2435,0.00024669,7]
[346085803,1734695467140,-151.0,0.00024669,7]
[346085804,1734695467151,-151.0,0.00024669,7]
[346085805,1734695467161,-151.0,0.00024669,7]
[346085806,1734695467171,-151.0,0.00024669,7]
[346085807,1734695467182,-151.0,0.00024669,7]
[346085808,1734695467193,-231.027257,0.00024669,7]
[346085809,1734695467207,-151.0,0.00024669,7]
[346085810,1734695467216,-151.0,0.00024669,7]
[346085811,1734695467226,-151.0,0.00024669,7]
[346085812,1734695467241,-151.0,0.00024669,7]
[346085813,1734695467251,-151.0,0.00024669,7]
[346085814,1734695467261,-151.0,0.00024669,7]
[346085815,1734695467272,-272.826624,0.00024669,7]
[346085816,1734695467281,-151.0,0.00024669,7]
[346085817,1734695467291,-151.0,0.00024669,7]
[346085818,1734695467301,-151.0,0.00024669,7]
[346085819,1734695467311,-151.0,0.00024669,7]
[346085820,1734695467321,-151.0,0.00024669,7]
[346085821,1734695467331,-151.0,0.00024669,7]
[346085822,1734695467342,-151.0,0.00024669,7]
[346085823,1734695467352,-151.0,0.00024669,7]
[346085824,1734695467361,-203.190262,0.00024669,7]
[346085825,1734695467371,-151.0,0.00024669,7]
[346085826,1734695467381,-647.554148,0.00024669,7]
[346085827,1734695467391,-647.554148,0.00024669,7]
[346085828,1734695467400,-152.386917,0.00024669,7]
[346085829,1734695467410,-647.554148,0.00024669,7]
[346085830,1734695467419,-647.554148,0.00024669,7]
[346085831,1734695467429,-647.554148,0.00024669,7]
[346085832,1734695467438,-647.554148,0.00024669,7]
[346085833,1734695467448,-647.554148,0.00024669,7]
[346085834,1734695467457,-647.554148,0.00024669,7]
[346085835,1734695467467,-647.554148,0.00024669,7]
[346085836,1734695467476,-151.0,0.00024669,7]
[346085837,1734695467489,-647.554148,0.00024669,7]
[346085838,1734695467498,-151.0,0.00024669,7]
[346085839,1734695467508,-647.554148,0.00024669,7]
[346085840,1734695467517,-647.554148,0.00024669,7]
[346085841,1734695467526,-151.0,0.00024669,7]
[346085842,1734695467535,-647.554148,0.00024669,7]
[346085843,1734695467544,-2562.62580577,0.00024669,2]
[346085844,1734695467554,-172211.62045863,0.00024669,2]
[346085845,1734695467564,-11331.95116332,0.00024669,2]
[346085846,1734695467574,-4697191.13637659,0.00024669,10]
[346085847,1734695467583,-1152.66421405,0.00024669,15]
[346085848,1734695467593,-669392.28264628,0.00024669,15]
[346085849,1734695467722,-37471.34745836,0.00024669,15]
[346085850,1734695467732,-7893.26599849,0.00024669,2]
[346085851,1734695467747,-324106.89991346,0.00024669,10]
[346085852,1734695467756,-258086.03096969,0.00024669,10]
[346085853,1734695467769,-728067.73023667,0.00024669,10]
[346085854,1734695467778,-304733.31807571,0.00024669,10]
[346085855,1734695467788,-408600.15222775,0.00024669,10]
[346085856,1734695467937,-3948434.03327068,0.00024669,10]
[346085857,1734695467958,-3315.99273577,0.00024669,10]
[346085858,1734695468072,-500.0,0.00023287,6]
[346085859,1734695468090,-500.0,0.00023561,6]
[346085860,1734695468100,-500.0,0.00023835,6]
[346085861,1734695468110,-469.31228529,0.00024109,6]
[346085862,1734695468120,-500.0,0.00024657,6]
[346085863,1734695468130,-151.0,0.00024669,7]
[346085864,1734695468140,-647.554148,0.00024669,7]
[346085865,1734695468150,-151.0,0.00024669,7]
[346085866,1734695468160,-647.554148,0.00024669,7]
[346085867,1734695468170,-151.0,0.00024669,7]
[346085868,1734695468180,-647.554148,0.00024669,7]
[346085869,1734695468189,-151.0,0.00024669,7]
[346085870,1734695468199,-647.554148,0.00024669,7]
[346085871,1734695468212,-151.0,0.00024669,7]
[346085872,1734695468222,-18434.07081171,0.00024669,10]
[346085873,1734695468239,-15790.96,0.00024669,10]
[346085874,1734695468251,-20164.70395502,0.00024669,10]
[346085875,1734695468262,-558000.0,0.00024669,10]
[346085876,1734695468280,-1863.3,0.00024669,10]
[346085877,1734695468355,-34.78420075,0.00024669,10]
[346085882,1734695733774,10000.0,0.00025,30]
[346085883,1734695753487,10000.0,0.00025,30]
[346085884,1734695767033,5415.27091247,0.000172,2]
[346085885,1734695767069,4584.72908753,0.000172,2]
[346085887,1734695875299,201.399198,0.00013973,2]
[346085893,1734695971133,1830.095,0.00025,90]
[346085894,1734696033565,10000.0,0.00025,30]
[346085899,1734696322862,10000.0,0.00025,60]
[346085902,1734696355274,-163.35762094,0.00020136,2]
[346085903,1734696399396,10000.0,0.00025,60]
[346085950,1734696552135,-11.39157906,0.00020136,2]
[346086149,1734696634103,-259.865816,0.00020326,2]
[346086150,1734696634115,-323.7633838,0.00020406,2]
[346086151,1734696634126,-178.305,0.00020447,2]
[346086152,1734696634137,-201.399198,0.00020447,2]
[346086153,1734696634148,-300.0,0.00020572,2]
[346086154,1734696634157,-300.0,0.00020572,2]
[346086155,1734696634168,-14355.0202746,0.00020573,2]
[346086156,1734696634177,-5164.75756255,0.0002082,2]
[346086157,1734696634188,-169.198961,0.00020892,2]
[346086158,1734696634198,-214.67090327,0.000209,2]
[346086159,1734696634208,-169.198961,0.00020996,2]
[346086160,1734696634217,-188.0931887,0.00021619,2]
[346086161,1734696634227,-2339.02751,0.000218,2]
[346086162,1734696634237,-280.60528058,0.00021916,2]
[346086163,1734696634249,-605.43898513,0.00021916,2]
[346086164,1734696634259,-500.0,0.00021917,6]
[346086165,1734696634270,-500.0,0.00021917,6]
[346086166,1734696634280,-500.0,0.00021917,6]
[346086167,1734696634291,-500.0,0.00021917,6]
[346086168,1734696634301,-500.0,0.00021917,6]
[346086169,1734696634311,-500.0,0.00021917,6]
[346086170,1734696634321,-500.0,0.00021917,6]
[346086171,1734696634331,-500.0,0.00021917,6]
[346086172,1734696634342,-500.0,0.00021917,6]
[346086173,1734696634352,-500.0,0.00021917,6]
[346086174,1734696634362,-500.0,0.00021917,6]
[346086175,1734696634372,-500.0,0.00021917,6]
[346086176,1734696634382,-500.0,0.00021917,6]
[346086177,1734696634392,-500.0,0.00021917,6]
[346086178,1734696634402,-500.0,0.00021917,6]
[346086179,1734696634412,-500.0,0.00021917,6]
[346086180,1734696634421,-500.0,0.00021917,6]
[346086181,1734696634431,-850.23,0.00021917,6]
[346086182,1734696634440,-500.0,0.00021917,6]
[346086183,1734696634449,-500.0,0.00021917,6]
[346086184,1734696634459,-500.0,0.00021917,6]
[346086185,1734696634468,-500.0,0.00021917,6]
[346086186,1734696634477,-500.0,0.00021917,6]
[346086187,1734696634487,-624.6,0.00021917,6]
[346086188,1734696634503,-1066.62,0.00021917,6]
[346086189,1734696634512,-500.0,0.00021917,6]
[346086190,1734696634522,-500.0,0.00021917,6]
[346086191,1734696634531,-500.0,0.00021917,6]
[346086192,1734696634541,-500.0,0.00021917,6]
[346086193,1734696634550,-500.0,0.00021917,6]
[346086194,1734696634560,-500.0,0.00021917,6]
[346086195,1734696634570,-500.0,0.00021917,6]
[346086196,1734696634584,-168.0,0.00021917,6]
[346086197,1734696634594,-500.0,0.00021917,6]
[346086198,1734696634603,-500.0,0.00021917,6]
[346086199,1734696634613,-500.0,0.00021917,6]
[346086200,1734696634625,-573.48,0.00021917,6]
[346086201,1734696634634,-500.0,0.00021917,6]
[346086202,1734696634644,-500.0,0.00021917,6]
[346086203,1734696634654,-594.63,0.00021917,6]
[346086204,1734696634664,-436.67260958,0.00021917,6]
[346086205,1734696634680,-500.0,0.00021917,6]
[346086206,1734696634692,-500.0,0.00021917,6]
[346086207,1734696634704,-433.89755758,0.00021917,6]
[346086208,1734696634717,-1223.06,0.00021917,6]
[346086209,1734696634729,-500.0,0.00021917,6]
[346086210,1734696634742,-500.0,0.00021917,6]
[346086211,1734696634754,-500.0,0.00021917,6]
[346086212,1734696634766,-500.0,0.00021917,6]
[346086213,1734696634777,-522.94934271,0.00021917,6]
[346086214,1734696634787,-862.06,0.00021917,6]
[346086215,1734696634798,-500.0,0.00021917,6]
[346086216,1734696634808,-500.0,0.00021917,6]
[346086217,1734696634820,-500.0,0.00021917,6]
[346086218,1734696634832,-500.0,0.00021917,6]
[346086219,1734696634844,-546.13,0.00021917,6]
[346086220,1734696634855,-620.96999532,0.00021917,6]
[346086221,1734696634866,-500.0,0.00021917,6]
[346086222,1734696634877,-115.54210681,0.00021917,6]
[346086223,1734696635083,-384.45789319,0.00021917,6]
[346086224,1734696635096,-617.10239672,0.00021917,6]
[346086225,1734696635107,-500.0,0.00021917,6]
[346086226,1734696635118,-527.84,0.00021917,6]
[346086227,1734696635130,-516.81,0.00021917,6]
[346086228,1734696635141,-500.0,0.00021917,6]
[346086229,1734696635152,-986.19,0.00021917,6]
[346086230,1734696635164,-500.0,0.00021917,6]
[346086231,1734696635175,-500.0,0.00021917,6]
[346086232,1734696635187,-500.0,0.00021917,6]
[346086233,1734696635198,-500.0,0.00021917,6]
[346086234,1734696635209,-500.0,0.00021917,6]
[346086235,1734696635221,-500.0,0.00021917,6]
[346086236,1734696635233,-509.37,0.00021917,6]
[346086237,1734696635250,-500.0,0.00021917,6]
[346086238,1734696635266,-941.11,0.00021917,6]
[346086239,1734696635279,-500.0,0.00021917,6]
[346086240,1734696635291,-1078.71971083,0.00021917,6]
[346086241,1734696635306,-630.020023,0.00021917,6]
[346086242,1734696635320,-991.34338201,0.00021917,6]
[346086243,1734696635333,-6392.89415648,0.00021917,6]
[346086244,1734696635347,-2146.97961106,0.00021917,6]
[346086246,1734696637443,459.5,0.00025,30]
[346086270,1734696638383,-2907.87311662,0.00021917,6]
[346086271,1734696638393,-136.04635812,0.00021917,6]
[346086274,1734696640708,-363.95364188,0.00021917,6]
[346086275,1734696640718,-146.40368011,0.00021917,6]
[346086296,1734696642182,434.5,0.00025,30]
[346086374,1734696643462,-353.59631989,0.00021917,6]
[346086376,1734696643473,-282.22715084,0.00021917,6]
[346086378,1734696643483,-500.0,0.00021917,6]
[346086381,1734696643499,-188.70181191,0.00021917,6]
[346086383,1734696643510,-953.74,0.00021917,6]
[346086385,1734696643521,-643.34,0.00021917,6]
[346086387,1734696643532,-682.29,0.00021917,6]
[346086389,1734696643543,-500.0,0.00021917,6]
[346086390,1734696643554,-500.0,0.00021917,6]
[346086393,1734696643593,-5770.18,0.00021917,6]
[346086394,1734696643604,-573.88,0.00021917,6]
[346086395,1734696643615,-1060.09,0.00021917,6]
[346086397,1734696643627,-500.0,0.00021917,6]
[346086399,1734696643638,-6762.45,0.00021917,6]
[346086400,1734696643648,-326.1400669,0.00021917,6]
[346086402,1734696643659,-4797.48,0.00021917,6]
[346086404,1734696643670,-924.05,0.00021917,6]
[346086405,1734696643681,-500.0,0.00021917,6]
[346086407,1734696643691,-500.0,0.00021917,6]
[346086408,1734696643701,-500.0,0.00021917,6]
[346086409,1734696643711,-870.44,0.00021917,6]
[346086410,1734696643721,-3409.0,0.00021917,6]
[346086411,1734696643732,-898.75,0.00021917,6]
[346086412,1734696643745,-500.0,0.00021917,6]
[346086413,1734696643758,-500.0,0.00021917,6]
[346086414,1734696643768,-605.96869377,0.00021917,6]
[346086415,1734696643779,-500.0,0.00021917,6]
[346086416,1734696643790,-566.16,0.00021917,6]
[346086417,1734696643801,-500.0,0.00021917,6]
[346086418,1734696643811,-500.0,0.00021917,6]
[346086419,1734696643821,-500.0,0.00021917,6]
[346086420,1734696643832,-500.0,0.00021917,6]
[346086421,1734696643842,-1864.08,0.00021917,6]
[346086422,1734696643852,-500.0,0.00021917,6]
[346086423,1734696643864,-500.0,0.00021917,6]
[346086424,1734696643874,-500.0,0.00021917,6]
[346086425,1734696643884,-500.0,0.00021917,6]
[346086426,1734696643894,-761.76,0.00021917,6]
[346086427,1734696643904,-500.0,0.00021917,6]
[346086428,1734696643915,-500.0,0.00021917,6]
[346086429,1734696643925,-500.0,0.00021917,6]
[346086430,1734696643935,-1471.1,0.00021917,2]
[346086431,1734696643946,-500.0,0.00021917,6]
[346086432,1734696643956,-500.0,0.00021917,6]
[346086433,1734696643967,-500.0,0.00021917,6]
[346086434,1734696643978,-500.0,0.00021917,6]
[346086435,1734696643989,-2138.29,0.00021917,2]
[346086436,1734696644003,-814.54,0.00021917,6]
[346086437,1734696644013,-746.22,0.00021917,6]
[346086438,1734696644024,-500.0,0.00021917,6]
[346086439,1734696644035,-1421.1,0.00021917,6]
[346086440,1734696644045,-500.0,0.00021917,6]
[346086441,1734696644056,-600.9409481,0.00021917,6]
[346086442,1734696644067,-500.0,0.00021917,6]
[346086443,1734696644077,-1161.42,0.00021917,6]
[346086444,1734696644087,-500.0,0.00021917,6]
[346086445,1734696644098,-500.0,0.00021917,6]
[346086446,1734696644109,-532.95,0.00021917,6]
[346086447,1734696644120,-921.31,0.00021917,6]
[346086448,1734696644130,-1840.22,0.00021917,6]
[346086449,1734696644140,-500.0,0.00021917,6]
[346086450,1734696644151,-500.0,0.00021917,6]
[346086451,1734696644161,-500.0,0.00021917,6]
[346086452,1734696644172,-500.0,0.00021917,6]
[346086453,1734696644182,-2044.55,0.00021917,6]
[346086454,1734696644192,-500.0,0.00021917,6]
[346086455,1734696644203,-500.0,0.00021917,6]
[346086456,1734696644214,-500.0,0.00021917,6]
[346086457,1734696644225,-208.59673127,0.00021917,6]
[346086458,1734696644236,-1092.83,0.00021917,7]
[346086459,1734696644251,-856.97,0.00021917,6]
[346086460,1734696644261,-2432.22,0.00021917,6]
[346086461,1734696644271,-500.0,0.00021917,6]
[346086462,1734696644282,-500.0,0.00021917,6]
[346086463,1734696644293,-500.0,0.00021917,6]
[346086464,1734696644303,-500.0,0.00021917,6]
[346086465,1734696644314,-500.0,0.00021917,6]
[346086466,1734696644325,-3509.96,0.00021917,6]
[346086467,1734696644336,-500.0,0.00021917,6]
[346086468,1734696644347,-500.0,0.00021917,6]
[346086469,1734696644358,-500.0,0.00021917,6]
[346086470,1734696644369,-207.92486489,0.00021917,6]
[346086471,1734696644380,-974.17,0.00021917,6]
[346086472,1734696644391,-500.0,0.00021917,6]
[346086473,1734696644402,-500.0,0.00021917,6]
[346086474,1734696644413,-500.0,0.00021917,6]
[346086475,1734696644424,-508.98,0.00021917,6]
[346086476,1734696644434,-513.0,0.00022,9]
[346086477,1734696644444,-161.0,0.00022,2]
[346086478,1734696644454,-666.0,0.00022091,2]
[346086479,1734696644464,-297.26927146,0.00022091,2]
[346086480,1734696644475,-289.60606928,0.0002219,2]
[346086481,1734696644485,-333.21324134,0.0002219,2]
[346086482,1734696644500,-500.0,0.00022191,6]
[346086483,1734696644510,-500.0,0.00022191,6]
[346086484,1734696644522,-500.0,0.00022191,6]
[346086485,1734696644533,-500.0,0.00022191,6]
[346086486,1734696644544,-500.0,0.00022191,6]
[346086487,1734696644554,-500.0,0.00022191,6]
[346086488,1734696644563,-500.0,0.00022191,6]
[346086489,1734696644574,-500.0,0.00022191,6]
[346086490,1734696644586,-500.0,0.00022191,6]
[346086491,1734696644596,-500.0,0.00022191,6]
[346086492,1734696644901,-500.0,0.00022191,6]
[346086493,1734696644911,-500.0,0.00022191,6]
[346086494,1734696644921,-500.0,0.00022191,6]
[346086495,1734696644930,-500.0,0.00022191,6]
[346086496,1734696644940,-850.23,0.00022191,6]
[346086497,1734696644950,-500.0,0.00022191,6]
[346086498,1734696644960,-500.0,0.00022191,6]
[346086499,1734696644970,-500.0,0.00022191,6]
[346086500,1734696644979,-500.0,0.00022191,6]
[346086501,1734696644989,-500.0,0.00022191,6]
[346086502,1734696645003,-624.6,0.00022191,6]
[346086503,1734696645014,-1066.62,0.00022191,6]
[346086504,1734696645024,-500.0,0.00022191,6]
[346086505,1734696645034,-500.0,0.00022191,6]
[346086506,1734696645044,-500.0,0.00022191,6]
[346086507,1734696645054,-500.0,0.00022191,6]
[346086508,1734696645064,-500.0,0.00022191,6]
[346086509,1734696645074,-500.0,0.00022191,6]
[346086510,1734696645084,-500.0,0.00022191,6]
[346086511,1734696645094,-168.0,0.00022191,6]
[346086512,1734696645103,-500.0,0.00022191,6]
[346086513,1734696645112,-500.0,0.00022191,6]
[346086514,1734696645122,-500.0,0.00022191,6]
[346086515,1734696645132,-573.48,0.00022191,6]
[346086516,1734696645143,-500.0,0.00022191,6]
[346086517,1734696645152,-500.0,0.00022191,6]
[346086518,1734696645162,-594.63,0.00022191,6]
[346086519,1734696645171,-500.0,0.00022191,6]
[346086520,1734696645181,-500.0,0.00022191,6]
[346086521,1734696645190,-1223.06,0.00022191,6]
[346086522,1734696645199,-500.0,0.00022191,6]
[346086523,1734696645210,-197.35344035,0.00022191,6]
[346086524,1734696645344,-302.64655965,0.00022191,6]
[346086525,1734696645354,-500.0,0.00022191,6]
[346086526,1734696645365,-500.0,0.00022191,6]
[346086527,1734696645377,-862.06,0.00022191,6]
[346086528,1734696645387,-500.0,0.00022191,6]
[346086529,1734696645397,-598.50027033,0.00022191,6]
[346086530,1734696645407,-500.0,0.00022191,6]
[346086531,1734696645418,-500.0,0.00022191,6]
[346086532,1734696645428,-309.28528938,0.00022191,6]
[346086533,1734696645441,-236.84471062,0.00022191,6]
[346086534,1734696645452,-500.0,0.00022191,6]
[346086535,1734696645461,-188.15528938,0.00022191,6]
[346086536,1734696645480,-311.84471062,0.00022191,6]
[346086537,1734696645491,-123.15528959,0.00022191,6]
[346086538,1734696645517,-376.84471041,0.00022191,6]
[346086539,1734696645527,-527.84,0.00022191,6]
[346086540,1734696645537,-516.81,0.00022191,6]
[346086541,1734696645547,-500.0,0.00022191,6]
[346086542,1734696645557,-500.0,0.00022191,6]
[346086543,1734696645567,-500.0,0.00022191,6]
[346086544,1734696645582,-500.0,0.00022191,6]
[346086545,1734696645592,-500.0,0.00022191,6]
[346086546,1734696645602,-500.0,0.00022191,6]
[346086547,1734696645612,-500.0,0.00022191,6]
[346086548,1734696645623,-941.11,0.00022191,6]
[346086549,1734696645633,-12651.67528959,0.00022191,6]
[346086550,1734696645645,-1496.15471041,0.00022191,6]
[346086551,1734696645655,-500.0,0.00022191,6]
[346086552,1734696645664,-500.0,0.00022191,6]
[346086553,1734696645675,-500.0,0.00022191,6]
[346086554,1734696645684,-953.74,0.00022191,6]
[346086555,1734696645694,-682.29,0.00022191,6]
[346086556,1734696645704,-500.0,0.00022191,6]
[346086557,1734696645713,-500.0,0.00022191,6]
[346086558,1734696645724,-4186.95197534,0.00022191,6]
[346086559,1734696645737,-1583.22802466,0.00022191,6]
[346086560,1734696645752,-573.88,0.00022191,6]
[346086561,1734696645762,-1060.09,0.00022191,6]
[346086562,1734696645773,-500.0,0.00022191,6]
[346086563,1734696645785,-6762.45,0.00022191,6]
[346086564,1734696645796,-4797.48,0.00022191,6]
[346086565,1734696645807,-924.05,0.00022191,6]
[346086566,1734696645817,-467.12633448,0.00022191,6]
[346086567,1734696645828,-247.00363797,0.00022191,6]
[346086568,1734696645839,-500.0,0.00022191,6]
[346086570,1734696645849,-870.44,0.00022191,6]
[346086572,1734696645858,-3409.0,0.00022191,6]
[346086573,1734696645867,-898.75,0.00022191,6]
[346086575,1734696645876,-500.0,0.00022191,6]
[346086576,1734696645886,-500.0,0.00022191,6]
[346086577,1734696645896,-500.0,0.00022191,6]
[346086578,1734696645905,-566.16,0.00022191,6]
[346086579,1734696645915,-500.0,0.00022191,6]
[346086580,1734696645925,-500.0,0.00022191,6]
[346086581,1734696645935,-500.0,0.00022191,6]
[346086582,1734696645944,-500.0,0.00022191,6]
[346086584,1734696645954,-1864.08,0.00022191,6]
[346086586,1734696645964,-500.0,0.00022191,6]
[346086587,1734696645974,-500.0,0.00022191,6]
[346086589,1734696645983,-500.0,0.00022191,6]
[346086591,1734696645992,-500.57200513,0.00022191,6]
[346086593,1734696646010,-761.76,0.00022191,6]
[346086596,1734696646020,-500.0,0.00022191,6]
[346086599,1734696646031,-500.0,0.00022191,6]
[346086601,1734696646043,-500.0,0.00022191,6]
[346086605,1734696646054,-1471.1,0.00022191,2]
[346086607,1734696646064,-500.0,0.00022191,6]
[346086609,1734696646074,-500.0,0.00022191,6]
[346086611,1734696646083,-500.0,0.00022191,6]
[346086613,1734696646093,-500.0,0.00022191,6]
[346086615,1734696646103,-814.54,0.00022191,6]
[346086617,1734696646113,-746.22,0.00022191,6]
[346086620,1734696646123,-500.0,0.00022191,6]
[346086623,1734696646133,-1421.1,0.00022191,6]
[346086625,1734696646142,-500.0,0.00022191,6]
[346086626,1734696646152,-500.0,0.00022191,6]
[346086628,1734696646162,-1161.42,0.00022191,6]
[346086630,1734696646171,-500.0,0.00022191,6]
[346086633,1734696646182,-500.0,0.00022191,6]
[346086635,1734696646193,-532.95,0.00022191,6]
[346086637,1734696646203,-921.31,0.00022191,6]
[346086638,1734696646213,-1840.22,0.00022191,6]
[346086639,1734696646223,-500.0,0.00022191,6]
[346086640,1734696646232,-500.0,0.00022191,6]
[346086641,1734696646242,-420.80645751,0.00022191,6]
[346086642,1734696646256,-500.0,0.00022191,6]
[346086643,1734696646266,-2044.55,0.00022191,6]
[346086644,1734696646276,-500.0,0.00022191,6]
[346086646,1734696646285,-500.0,0.00022191,6]
[346086648,1734696646296,-500.0,0.00022191,6]
[346086649,1734696646305,-856.97,0.00022191,6]
[346086651,1734696646315,-2432.22,0.00022191,6]
[346086652,1734696646324,-500.0,0.00022191,6]
[346086654,1734696646334,-500.0,0.00022191,6]
[346086655,1734696646343,-500.0,0.00022191,6]
[346086657,1734696646352,-500.0,0.00022191,6]
[346086658,1734696646362,-500.0,0.00022191,6]
[346086659,1734696646372,-3509.96,0.00022191,6]
[346086660,1734696646382,-500.0,0.00022191,6]
[346086661,1734696646392,-500.0,0.00022191,6]
[346086662,1734696646402,-500.0,0.00022191,6]
[346086663,1734696646411,-974.17,0.00022191,6]
[346086664,1734696646421,-469.33405544,0.00022191,6]
[346086665,1734696646430,-500.0,0.00022191,6]
[346086667,1734696646441,-500.0,0.00022191,6]
[346086668,1734696646451,-508.98,0.00022191,6]
[346086669,1734696646460,-568.06208301,0.00022365,7]
[346086670,1734696646470,-15298.29724153,0.00022365,3]
[346086671,1734696646479,-420.0,0.00022388,2]
[346086672,1734696646488,-1297.92,0.000224,2]
[346086673,1734696646500,-500.0,0.00022465,6]